{"text_format":"1","workbook":"xlsx","n_sheets":2,"sheets":["함수","VBA"],"not_rendered":{"charts":0,"images":0,"macros":1,"external_links":0,"defined_names":0,"comments":0,"pivot_tables":0},"unopened":[],"bounds":{"document_bytes":16777216,"sheet_cells":100000,"rows_first":2000,"rows_last":500,"rows_between":2000,"halvings":0,"cell_chars":16384,"cell_head_chars":4096},"cells_cut":0,"cells_raw":0,"read":"whole","date_system":"1900"}

{"sheet":"함수","index":0,"n_rows":9,"n_cols":13,"rows_kept":9,"cut":false,"hidden":false,"merged":[]}
["소재지","특지구분","본번","부번",null,null,null,"소재지","특지구분","본번","부번"]
["경기도 가평군 북면 소법리",null,302,null,{"$f":"A2 & \" \" & B2 & C2 & IF(D2>0,\"-\"&D2,\"\")","v":"경기도 가평군 북면 소법리 302"},{"$f":"_xlfn.CONCAT(A2,\" \",B2,C2,IF(D2>0,\"-\"&D2,\"\"))","v":"경기도 가평군 북면 소법리 302"},null,"경기도 가평군 북면 소법리","일반",302,0,{"$f":"H2 & \" \" & IF(I2=\"산\",I2,\"\") & J2 & IF(K2>0, \"-\" & K2, \"\")","v":"경기도 가평군 북면 소법리 302"},{"$f":"_xlfn.CONCAT(H2,\" \",IF(I2=\"산\",I2,\"\"), J2,IF(K2>0, \"-\" & K2, \"\"))","v":"경기도 가평군 북면 소법리 302"}]
["경기도 가평군 북면 소법리",null,286,3,{"$f":"A3 & \" \" & B3 & C3 & IF(D3>0,\"-\"&D3,\"\")","v":"경기도 가평군 북면 소법리 286-3"},{"$f":"_xlfn.CONCAT(A3,\" \",B3,C3,IF(D3>0,\"-\"&D3,\"\"))","v":"경기도 가평군 북면 소법리 286-3"},null,"경기도 가평군 북면 소법리","일반",286,3,{"$f":"H3 & \" \" & IF(I3=\"산\",I3,\"\") & J3 & IF(K3>0, \"-\" & K3, \"\")","v":"경기도 가평군 북면 소법리 286-3"},{"$f":"_xlfn.CONCAT(H3,\" \",IF(I3=\"산\",I3,\"\"), J3,IF(K3>0, \"-\" & K3, \"\"))","v":"경기도 가평군 북면 소법리 286-3"}]
["경기도 가평군 북면 소법리",null,276,2,"경기도 가평군 북면 소법리 276-2","경기도 가평군 북면 소법리 276-2",null,"경기도 가평군 북면 소법리","일반",276,2,"경기도 가평군 북면 소법리 276-2","경기도 가평군 북면 소법리 276-2"]
["경기도 가평군 북면 소법리",null,355,null,"경기도 가평군 북면 소법리 355","경기도 가평군 북면 소법리 355",null,"경기도 가평군 북면 소법리","일반",355,0,"경기도 가평군 북면 소법리 355","경기도 가평군 북면 소법리 355"]
["경기도 가평군 북면 소법리",null,286,2,"경기도 가평군 북면 소법리 286-2","경기도 가평군 북면 소법리 286-2",null,"경기도 가평군 북면 소법리","일반",286,2,"경기도 가평군 북면 소법리 286-2","경기도 가평군 북면 소법리 286-2"]
["경기도 가평군 북면 소법리","산",91,null,"경기도 가평군 북면 소법리 산91","경기도 가평군 북면 소법리 산91",null,"경기도 가평군 북면 소법리","산",91,0,"경기도 가평군 북면 소법리 산91","경기도 가평군 북면 소법리 산91"]
["경기도 가평군 북면 소법리","산",33,null,"경기도 가평군 북면 소법리 산33","경기도 가평군 북면 소법리 산33",null,"경기도 가평군 북면 소법리","산",33,0,"경기도 가평군 북면 소법리 산33","경기도 가평군 북면 소법리 산33"]
["경기도 가평군 북면 소법리","산",64,null,"경기도 가평군 북면 소법리 산64","경기도 가평군 북면 소법리 산64",null,"경기도 가평군 북면 소법리","산",64,0,"경기도 가평군 북면 소법리 산64","경기도 가평군 북면 소법리 산64"]

{"sheet":"VBA","index":1,"n_rows":9,"n_cols":5,"rows_kept":9,"cut":false,"hidden":false,"merged":[]}
["소재지","특지구분","본번","부번"]
["경기도 가평군 북면 소법리",null,302,null,{"$f":"To_Addr(A2:D2,1)","v":"경기도 가평군 북면 소법리 302"}]
["경기도 가평군 북면 소법리",null,286,3,{"$f":"To_Addr(A3:D3,1)","v":"경기도 가평군 북면 소법리 286-3"}]
["경기도 가평군 북면 소법리",null,276,2,{"$f":"To_Addr(A4:D4,1)","v":"경기도 가평군 북면 소법리 276-2"}]
["경기도 가평군 북면 소법리",null,355,null,{"$f":"To_Addr(A5:D5,1)","v":"경기도 가평군 북면 소법리 355"}]
["경기도 가평군 북면 소법리",null,286,2,{"$f":"To_Addr(A6:D6,1)","v":"경기도 가평군 북면 소법리 286-2"}]
["경기도 가평군 북면 소법리","산",91,null,{"$f":"To_Addr(A7:D7,1)","v":"경기도 가평군 북면 소법리 산 91"}]
["경기도 가평군 북면 소법리","산",33,null,{"$f":"To_Addr(A8:D8,1)","v":"경기도 가평군 북면 소법리 산 33"}]
["경기도 가평군 북면 소법리","산",64,null,{"$f":"To_Addr(A9:D9,1)","v":"경기도 가평군 북면 소법리 산 64"}]